Cogmind - Beta 13 @@@ ROGUE MODE // 2024.04.22 @ 18:25:24 Player: CanadianCogs Result: Destroyed by as-66292 with Assembled Heavy Rifle Performance ------------- Evolutions (0) 0 Regions Visited (2) 400 Robots Destroyed (36) 180 Value Destroyed (632) 632 Prototype IDs (0) 0 Alien Tech Used (0) 0 Bonus (0) 0 TOTAL SCORE: 1212 Bonus ------- None Cogmind --------- Core Integrity 0/250 Matter 300/300 Energy 100/100 System Corruption 3% Temperature Cool (0) Movement Core (200) Ox3 Location -10/Mines Parts ------- > --- POWER (1) -------- (None) > --- PROPULSION (2) --- (None) > --- UTILITY (2) ------ Medium Storage Unit > --- WEAPON (2) ------- Mining Claw > --- INVENTORY (10) --- Sensor Array Terrain Scanner Terrain Scan Processor Hacking Suite Beam Cannon Light Cannon Mining Claw Mining Claw Mining Claw Mining Claw Peak State ------------ > --- POWER ------------ Light Ion Engine > --- PROPULSION ------- Light Treads Light Treads > --- UTILITY ---------- Small Storage Unit Structural Scanner > --- WEAPON ----------- Medium Laser Assault Rifle > --- INVENTORY -------- Sensor Array Terrain Scanner Terrain Scan Processor Hacking Suite Beam Cannon Light Cannon Mining Claw [Rating: 8] Favorites ----------- Power Light Ion Engine Engine Light Ion Engine Propulsion Light Treads Treads Light Treads Utility Structural Scanner Device Structural Scanner Storage Small Storage Unit Weapon Assault Rifle Energy Gun Medium Laser Ballistic Gun Assault Rifle Slashing Weapon Mining Claw Build | -11 -10 -10 ------- Run | Yrd Mat Min Slots Evolved . | . . . Power . | . . . Propulsion . | . . . Utility . | . . . Weapon . | . . . Parts Attached 23 | 7 16 . Power 7 | 1 6 . Engine 7 | 1 6 . Core . | . . . Reactor . | . . . Propulsion 7 | 2 5 . Treads 7 | 2 5 . Leg . | . . . Wheel . | . . . Hover . | . . . Flight . | . . . Utility 3 | 1 2 . Device 1 | . 1 . Storage 2 | 1 1 . Processor . | . . . Hackware . | . . . Protection . | . . . Artifact . | . . . Weapon 6 | 3 3 . Energy Gun 1 | 1 . . Energy Cannon . | . . . Ballistic Gun 3 | 2 1 . Ballistic Cannon . | . . . Launcher . | . . . Special Weapon . | . . . Impact Weapon . | . . . Slashing Weapon 2 | . 2 . Piercing Weapon . | . . . Special Melee Weapon . | . . . Unidentified Prototypes . | . . . Parts Lost 7 | . 2 5 Power 1 | . . 1 Propulsion 3 | . 1 2 Utility 1 | . . 1 Weapon 2 | . 1 1 Highest Loss Streak 5 | . 2 5 To Critical Strikes . | . . . Average Slot Usage (%) 97 | . 97 89 Engine 13 | . 13 12 Treads 26 | . 26 23 Device 13 | . 13 11 Storage 14 | . 14 14 Energy Gun 9 | . 9 . Ballistic Gun 10 | . 10 . Slashing Weapon 8 | . 7 26 Naked Turns . | . . . Heaviest Build 18 | 12 18 18 Greatest Support 40 | 40 40 40 Greatest Overweight (x) 4 | . 3 4 Average Overweight (x) . | . . . Largest Inventory Capacity 10 | 8 10 10 Average Capacity 8 | 7 8 10 Most Carried 10 | 5 10 10 Average Carried 5 | . 5 10 Final Capacity 10 | 8 10 10 Final Carried 10 | . 10 10 Class Distribution -------------------- 100% | Mutant Dominant Class ---------------- Mutant | -10/Materials Mutant | -10/Mines Resources | -11 -10 -10 ----------- Run | Yrd Mat Min Matter Collected 744 | 179 556 9 Remotely . | . . . Salvage Created 1176 | . 1157 19 Parts 78 | . 78 . Haulers Intercepted . | . . . Recyclers Shooed 4 | . 4 . Parts Field Recycled . | . . . Retrieved Matter . | . . . Parts Self-Destructed . | . . . Prevented . | . . . Kills | -11 -10 -10 ------- Run | Yrd Mat Min Combat Hostiles Destroyed 22 | . 21 1 Melee 1 | . . 1 Guns 21 | . 21 . Classes Destroyed 7 | . 6 1 Builder 6 | . 6 . Recycler 5 | . 5 . Operator 1 | . 1 . Watcher 3 | . 3 . Swarmer 9 | . 9 . Grunt 12 | . 12 . Assembled 1 | . . 1 Best Kill Streak 6 | . 6 1 Combat Bots Only 6 | . 6 1 Max Kills in Single Turn 2 | . 2 1 Gunslinging 1 | . 1 . Exploded . | . . . Melee 1 | . . 1 Uniques/NPCs Destroyed . | . . . Combat | -11 -10 -10 -------- Run | Yrd Mat Min Hostile Shots Fired 134 | . 105 29 Missed 36 | . 29 7 Damage Taken 1332 | . 728 604 Core 255 | . 111 144 Absorbed by Shields . | . . . Regen/Repaired (Parts) 144 | . 144 . Core Remaining (%) 100 | 100 . . Volleys Fired 93 | . 93 . Largest 2 | . 2 . Hottest 70 | . 70 . Shots Fired 178 | . 178 . Gun 178 | . 178 . Cannon . | . . . Launcher . | . . . Special . | . . . Kinetic 93 | . 93 . Thermal 85 | . 85 . Explosive . | . . . Electromagnetic . | . . . Robot Hit Streak 12 | . 12 . Robot Miss Streak 5 | . 5 . Penetration Max . | . . . Secondary Targets 3 | . 3 . Max Gunslinging Chain 1 | . 1 . Shots Hit Robots 117 | . 116 1 Core Hits 54 | . 53 1 Critical Kills . | . . . Critical Parts Destroyed . | . . . Critical Strikes 5 | . 5 . Burn 5 | . 5 . Melee Attacks 19 | . 17 2 Impact . | . . . Slashing 19 | . 17 2 Piercing . | . . . Sneak Attacks 4 | . 4 . Combat Hostiles . | . . . Follow-up Attacks . | . . . Damage Inflicted 1665 | . 1637 28 Guns 1414 | . 1414 . Cannons . | . . . Explosions . | . . . Melee 251 | . 223 28 Ramming . | . . . Kinetic 736 | . 736 . Thermal 678 | . 678 . Explosive . | . . . Electromagnetic . | . . . Impact . | . . . Slashing 251 | . 223 28 Piercing . | . . . Highest Corruption 3 | . 3 3 Average Corruption 2 | . 2 3 Corruption Purged . | . . . Corruption Blocked . | . . . Effects 28 | . 26 2 Message Errors 10 | . 9 1 Matter Fused 8 | . 7 1 Heat Flow Errors 4 | . 4 . Energy Discharges 2 | . 2 . Data Loss (minor) 3 | . 3 . Data Loss (major) 1 | . 1 . Overload Shots . | . . . Overflow Damage 19 | . 19 . Projectiles . | . . . Explosions . | . . . Melee 19 | . 19 . Knockbacks . | . . . Impact . | . . . Kinetic . | . . . Secondary . | . . . Self-Inflicted Damage . | . . . Shots . | . . . Rammed . | . . . Targets Rammed . | . . . Kicked . | . . . Crushed . | . . . Highest Temperature 311 | . 311 . Average Temperature 50 | . 50 . Received Heat Transfer 346 | . 246 100 Siege Activations . | . . . Robots Corrupted . | . . . Combat Hostiles . | . . . Parts Fried . | . . . Impact Corruptions . | . . . Robots Melted . | . . . Combat Hostiles . | . . . Parts Melted 4 | . 4 . Heat Transferred 2368 | . 2368 . Parts Sabotaged . | . . . Parts Stolen . | . . . Parts Stripped . | . . . Power Chain Reactions . | . . . Alert | -11 -10 -10 ------- Run | Yrd Mat Min Peak Influence 347 | . 347 70 Initial 70 | . . 70 Average 210 | . 223 66 Maximum Alert Level 1 | . 1 . Low Security (%) 29 | 100 24 100 Level 1 70 | . 75 . Level 2 . | . . . Level 3 . | . . . Level 4 . | . . . Level 5 . | . . . High Security . | . . . Max Security . | . . . Squads Dispatched 6 | . 6 . Investigation 6 | . 6 . Extermination . | . . . Reinforcement . | . . . Assault . | . . . Garrison . | . . . Intercept . | . . . Searches Triggered . | . . . Construction Impeded . | . . . Haulers Reinforced . | . . . Active Scanning Responses . | . . . Cargo Convoy Interrupts . | . . . Stealth | -11 -10 -10 --------- Run | Yrd Mat Min Distress Signals 2 | . 2 . Communications Jammed . | . . . Distress Signals . | . . . Times Spotted 52 | . 35 17 Peak Tracking Total 8 | . 8 7 Tactical Retreats . | . . . Traps | -11 -10 -10 ------- Run | Yrd Mat Min Traps Triggered 2 | . 2 . Indirectly . | . . . Trap Hack Attempts . | . . . Triggered . | . . . Disarmed . | . . . Reprogrammed . | . . . Reused . | . . . Traps Extracted . | . . . Installed . | . . . Triggered . | . . . Machines | -11 -10 -10 ---------- Run | Yrd Mat Min Machines Disabled 1 | . 1 . Max in Single Turn 1 | . 1 . Machines Repaired . | . . . Machines Dismantled . | . . . Machines Sabotaged . | . . . Overloaded Fab Kills . | . . . Hacking | -11 -10 -10 --------- Run | Yrd Mat Min Machines Accessed 10 | . 10 . Terminals 8 | . 8 . Fabricators . | . . . Repair Stations 1 | . 1 . Recycling Units 1 | . 1 . Scanalyzers . | . . . Garrison Access . | . . . Total Hacks 43 | . 43 . Successful 25 | . 25 . Failed 18 | . 18 . Catastrophic 1 | . 1 . Database Lockouts . | . . . Manual 18 | . 18 . Terminals 36 | . 36 . Fabricators . | . . . Repair Stations 5 | . 5 . Recycling Units 2 | . 2 . Scanalyzers . | . . . Garrison Access . | . . . Terminal Hacks 12 | . 12 . Record 1 | . 1 . Level Access Points 1 | . 1 . Alert Level 1 | . 1 . Locate Traps 3 | . 3 . Maintenance Status 1 | . 1 . Hauler Manifests 1 | . 1 . Registered Components 1 | . 1 . Registered Prototypes 1 | . 1 . Zone Layout 2 | . 2 . Fabricator Hacks . | . . . Repair Station Hacks 4 | . 4 . Scan Component 2 | . 2 . Repair 2 | . 2 . Recycling Unit Hacks 1 | . 1 . Retrieve Components 1 | . 1 . Scanalyzer . | . . . Garrison Access Hacks . | . . . Unauthorized Hacks 8 | . 8 . Terminals 7 | . 7 . Track 2 | . 2 . Assimilate 1 | . 1 . Botnet 3 | . 3 . Operators 1 | . 1 . Fabricators . | . . . Repair Stations 1 | . 1 . Mechanics 1 | . 1 . Recycling Units . | . . . Scanalyzers . | . . . Garrison Access . | . . . Data Cores Recovered . | . . . Used . | . . . Hacking Detections 10 | . 10 . Full Trace Events 9 | . 9 . Feedback Events 1 | . 1 . Corruption 1 | . 1 . Feedback Blocked . | . . . Robot Schematics Acquired . | . . . Robots Built . | . . . Authchips . | . . . Time . | . . . Total Robot Build Rating . | . . . Part Schematics Acquired . | . . . Parts Built . | . . . Authchips . | . . . Time . | . . . Total Part Build Rating . | . . . Parts Repaired 2 | . 2 . Time 52 | . 52 . Parts Recycled . | . . . Recycled Matter . | . . . Retrieved Matter . | . . . Retrieved Components 10 | . 10 . Parts Scanalyzed . | . . . Part Schematics Acquired . | . . . Parts Damaged . | . . . Bothacking | -11 -10 -10 ------------ Run | Yrd Mat Min Used RIF Installer . | . . . Robots Hacked . | . . . Non-combat . | . . . Combat . | . . . Robot Hacks Applied . | . . . Relay Couplers Released . | . . . Fabnet Peak Effective % . | . . . Robots Rewired . | . . . Allies Hacked . | . . . Hacks Repelled . | . . . Allies | -11 -10 -10 -------- Run | Yrd Mat Min Total Allies . | . . . Largest Group . | . . . Highest-Rated Group . | . . . Highest-Rated Ally . | . . . Total Orders . | . . . Ally Attacks . | . . . Total Damage . | . . . Kills . | . . . Allies Corrupted . | . . . Allies Melted . | . . . Intel | -11 -10 -10 ------- Run | Yrd Mat Min Robot Analysis Total . | . . . Derelict Logs Recovered . | . . . Drone Launches . | . . . Drone Recoveries . | . . . Exploration | -11 -10 -10 ------------- Run | Yrd Mat Min Turns Passed 2382 | 72 2216 94 Spaces Moved 1177 | 47 1076 54 Core 21 | 15 3 3 Treads 1156 | 32 1073 51 Legs . | . . . Wheels . | . . . Hover . | . . . Flight . | . . . Fastest Speed 50 | 50 160 160 Average Speed 158 | 124 160 163 Slowest Speed 250 | 160 200 250 Overloaded Moves . | . . . Propulsion Burnouts . | . . . Robots Hopped . | . . . Cave-ins Triggered . | . . . Exploration Rate (%) 44 | 4 98 31 Regions Visited 2 Branch Regions 1 Pre-discovered Areas . | . . . Known Exits Taken . | . . . Unknown Exits Taken 2 | 1 1 . Scrap Searched . | . . . Spaces Dug 2 | . 2 . Terrain Destroyed 2 | . 2 . Melee 2 | . 2 . Projectile . | . . . AOE . | . . . Terrain Rammed . | . . . Walls Destroyed . | . . . Machines Disabled . | . . . Actions | -11 -10 -10 --------- Run | Yrd Mat Min Total 1475 | 60 1359 56 Wait 124 | . 124 . Move 1175 | 46 1075 54 Hop . | . . . Pick Up 32 | 6 26 . Fast Attach 2 | 1 1 . Attach 14 | 6 8 . Detach . | . . . Swap 7 | . 7 . Drop 10 | 1 9 . Fire 93 | . 93 . Melee 18 | . 16 2 Ram . | . . . Kick . | . . . Crush . | . . . Escape Stasis . | . . . Rewire . | . . . Trap . | . . . Miscellaneous . | . . . Route ------- -11/Scrapyard -10/Materials (discovered 6 exits: *Mat x3 / [*Min x2] / [*Sub]) -10/Mines (discovered 1 exit: *Mat) History --------- Turn | Location | Event 7 | -11/Scrapyard | Discovered new exit (range 16) 73 | -11/Scrapyard | Entered Materials 229 | -10/Materials | Discovered new exit (range 11) 312 | -10/Materials | Build established: Mutant 501 | -10/Materials | Identified exit to Materials 754 | -10/Materials | Repaired Assault Rifle 782 | -10/Materials | Repaired Lgt. Treads 1132 | -10/Materials | Discovered new exit (range 7) 2080 | -10/Materials | Discovered new exit (range 13) 2289 | -10/Materials | Entered Mines 2330 | -10/Mines | Assembled infested the area 2341 | -10/Mines | Core integrity fell below 50% 2377 | -10/Mines | Discovered exit to Materials (range 9) 2381 | -10/Mines | Core integrity fell below 20% 2383 | -10/Mines | Destroyed by as-66292 with Assembled Heavy Rifle Last Messages --------------- 02350_ as-68230 destroyed. 02353_ The unstable cave ceiling collapses. 02363_ Lgt. Treads destroyed. 02365_ Structural Scanner destroyed. 02366_ as-92581 destroyed. 02367_ as-79428 destroyed. 02368_ as-24453 destroyed. 02368_ as-61818 destroyed. 02370_ System corrupted: Matter fused (-8). 02370_ D-53 Grenadier destroyed. 02371_ Lgt. Ion Engine destroyed. 02373_ R-06 Scavenger collects Sml. Storage Unit. 02376_ The unstable cave ceiling collapses. 02377_ Lgt. Treads destroyed. 02377_ EXIT=FOUND: MATERIALS 02378_ The unstable cave ceiling collapses. 02378_ D-53 Grenadier destroyed. 02378_ Mining Claw destroyed. 02378_ R-06 Scavenger collects Flight Unit. 02381_ R-06 Scavenger destroyed. Map ----- +----------------------------------------------------+ | | | | | | | | | | | | | | | | | | | | | | | | | | | | | | | | | | | | | | | | | ?????????????????????????????????????????????????? | | ??????????????????????????????###????????????????? | | ?????????????????????????????# ##???????????????? | | ??????????????????????????### #???????????????? | | ?????????????????????###### # #???????????????? | | ?????????????????????# @ ##??????????????? | | ?????????????????????# # ##?????????????? | | ?????????????????????# # #?????????????? | | ?????????????????????# aa a #?????????????? | | ?????????????????????#= a #?????????????? | | ?????????????????????#% #????????????? | | ???????????????## ? !%* <#???????????? | | ???????????????## <%= # # #??????????? | | ???????????????## = * % #? ????????? | | ???????????????## = ##?? # ????????? | | ???????????????## %= a #???? ##??????????? | | ???????????????## """ % ?????#?? ##??????? | | ??????????????? """ % ##??????? ###?????? | | ???????????????## ?""" ##?????? ####????? | | ??????????????????? # #???## ###????? | | ??????????????????## #### ####### ##????? | | ???????????????????# ??## ###### ###???? | | ???????????????????#???## ###???? | | ???????????????????????## ! % ##???? | | ???????????????????????#### % ##???# | | ???????????????????????##### ###?### | | ?????????????????????????## ###?#### | | ?????????????????????????### ###??### | | ?????????????????????????### ^ ###?### | | ??????????????????????????## # ####### | +----------------------------------------------------+ Best States ------------- Heat Dissipation 25 Energy Generation 10 Energy Capacity 250 Matter Stores 300 Matter Capacity 300 Sight Range 16 Terrain Scan Density 10 Evasion (%) 50 Recoil Reduction 2 Item Schematics ----------------- None Robot Schematics ------------------ None Fabricated ------------ Nothing Alien Tech Used ----------------- None Achievements -------------- None Challenges ------------ None Game ------ Seed DecoyGodShield Manual? 0 Play Time 00:24:40 Cumulative 18.6 hours Start 2024.04.22 @ 18:00:09 End 2024.04.22 @ 18:25:24 Sessions 1 Manual Loads 0 Difficulty Rogue Special Mode None Game No. 25 Rogue 25 Adventurer 0 Explorer 0 Win Type - Total 0 Types 0/0/0/0/0/0/0/0/0 Lore% 18 Gallery% 22 Achievement% 19 Wizard Run 0 Options --------- Layout 0 ASCII 0 Keyboard 0 Movement Mouse Keybinds 0 Fullscreen 2 Font 18/SmallcapsGlow Map View 38x25 Zoom Use 87% Tactical HUD 1 Map Filters NONE Filters NONE Steam 1 RUN: 8f507e1c-8a8c-4278-8e6b-1b45253a27e2